{"text_format":"1","workbook":"xlsx","n_sheets":5,"sheets":["Pos m Pos b","Pos m Neg b","Neg m Pos b","Neg m Neg b","Manual"],"not_rendered":{"charts":9,"images":24,"macros":1,"external_links":0,"defined_names":0,"comments":0,"pivot_tables":0},"unopened":[],"bounds":{"document_bytes":16777216,"sheet_cells":100000,"rows_first":2000,"rows_last":500,"rows_between":2000,"halvings":0,"cell_chars":16384,"cell_head_chars":4096},"cells_cut":0,"cells_raw":0,"read":"whole","date_system":"1900"}

{"sheet":"Pos m Pos b","index":0,"n_rows":85,"n_cols":25,"rows_kept":85,"cut":false,"hidden":false,"merged":[[0,0,0,4],[16,0,16,4],[1,0,1,4],[23,0,23,4],[11,5,11,6],[17,0,17,4],[20,0,20,4],[8,0,8,1],[8,5,8,6],[1,18,1,20],[0,18,0,20],[8,9,8,11],[23,10,23,14],[84,24,84,25],[24,17,24,19],[8,13,8,15],[9,9,9,15],[19,10,19,14],[20,10,20,14],[21,10,21,14],[12,10,12,11],[13,12,14,15],[12,7,12,9]]}
["Designing Gain and Offset with Positive m and Positive b",null,null,null,null,null,null,null,null,null,null,null,null,null,null,null,null,null,"Positive m and Positive b"]
["To design such a circuit, some things must be known in advance. The values in yellow cells:",null,null,null,null,null,null,null,null,null,null,null,null,null,null,null,null,null,"Default values"]
["The voltage of the Power Supply for Op-Amp =","Vcc =",{"$f":"+T3","v":6},"Volt",null,null,null,null,null,null,null,null,null,null,null,null,null,null,"Vcc =",6,"Volt"]
["The voltage level of a stable reference =","Vref =",6,"Volt",null,null,null,null,null,null,null,null,null,null,null,null,null,null,"Vref =",6,"Volt"]
["The full-scale output voltage =","VoutFS =",4,"Volt",null,null,null,null,null,null,null,null,null,null,null,null,null,null,"VoutFS =",4,"Volt"]
["The zero-scale output voltage =","VoutZS =",1,"Volt",null,null,null,null,null,null,null,null,null,null,null,null,null,null,"VoutZS =",1,"Volt"]
["The full-scale input voltage =","VinFS =",1,"Volt",null,null,null,null,null,null,null,null,null,null,null,null,null,null,"VinFS =",1,"Volt"]
["The zero-scale input voltage =","VinZS =",0.01,"Volt",null,null,null,null,null,null,null,null,null,null,null,null,null,null,"VinZS =",0.01,"Volt"]
["Positive m and Positive b",null,null,null,null,{"$f":"IF(AND(F10>0,F11>0),\"Select Pos m Pos b\",IF(AND(F10>0,F11<0),\"Select Pos m Neg b\",IF(AND(F10<0,F11>0),\"Select Neg m Pos b\",IF(AND(F10<0,F11<0),\"Select Neg m Neg b\",\"Try again\"))))","v":"Select Pos m Pos b"},null,null,{"$f":"IF(AND(F10>0,F11>0),\"OK\",\"Try again\")","v":"OK"},"Gain = 1 + (Rf/Rg) =",null,null,{"$f":"1+(D14/D16)","v":3.1774193548387095},"With standard values"]
["m = the gain of the stage","m =","(VoutFS - VoutZS) / (VinFS - VinZS) =",null,null,{"$f":"(C5-C6)/(C7-C8)","v":3.0303030303030303},"|m| =",{"$f":"ABS(F10)","v":3.0303030303030303},null,"DC-Coupled Non-Inverting Amplifier"]
["b = the offset of the gain","b =","VoutZS - (m * VinZS) =",null,null,{"$f":"C6-(F10*C8)","v":0.96969696969696972},"|b| =",{"$f":"ABS(F11)","v":0.96969696969696972}]
[]
["Choose R1 =","R1 =",10000,{"$f":"+C13","v":10000},"Ω",{"$f":"+D13/1000","v":10},"kΩ","Intermediate Values",null,null,"Resulting Values"]
["Select Rf from the data sheet =","Rf =",27000,{"$f":"+C14","v":27000},"Ω",{"$f":"+D14/1000","v":27},"kΩ","VoutZS =",{"$f":"F10*C26+F11","v":1},"Volt",0.99839999999999995,"Volt","See simulator program above\nwith standard resistors"]
["Calculate R2 = Vref*R1*m/b =","R2 =",{"$f":"C4*C13*F10/F11","v":187500},187000,"Ω",{"$f":"+D15/1000","v":187},"kΩ","VoutFS =",{"$f":"F10*D26+F11","v":4},"Volt",3.984,"Volt"]
["Calculate Rg = (R2*Rf)/(m*(R1+R2)-R2) =","Rg =",{"$f":"(C15*C14)/(F10*(C13+C15)-C15)","v":12317.972350230413},12400,"Ω",{"$f":"+D16/1000","v":12.4},"kΩ"]
["Positive m and Positive b with filtering - Rollof frequency fo at Vin"]
["Calculate Co Rollof frequency fo at Vin"]
["Select fo =","fo =",33860,"Hz",{"$f":"+C19/1000","v":33.86},"kHz",{"$f":"E19/1000","v":3.3860000000000001E-2},"MHz"]
["Co can be determined by = 1/(2*phi*R1*fo) =","Co =",{"$f":"(1/(2*PI()*D13*C19))*10^6","v":4.7003822531569794E-4},"uF",{"$f":"C20*1000","v":0.47003822531569794},"nF",{"$f":"E20*1000","v":470.03822531569796},"pF"]
["Calculate Rollof frequency fo with Co at Vin",null,null,null,null,null,null,null,null,null,"Udarbejdet af Jørgen Walter ©"]
["Select Co =","Co =",470,"pF",{"$f":"C22/1000","v":0.47},"nF",{"$f":"E22/1000","v":4.6999999999999999E-4},"uF",null,null,"www.walter-lystfisker.dk "]
["fo can be determined by = 1/(2*phi*R1*Co) =","fo =",{"$f":"(1/(2*PI()*D13*C22*10^-12))","v":33862.753849339431},"Hz",{"$f":"C23/1000","v":33.862753849339434},"kHz",{"$f":"E23/1000","v":3.3862753849339434E-2},"MHz"]
["Straight line = Y =( m * X) + b = Vout = (m * Vin) + b",null,null,null,null,null,null,null,null,null,"COPYRIGHT © 2014"]
["Vout  LM324",null,{"$f":"+C6","v":1},{"$f":"+C5","v":4},null,"m=",{"$f":"+F10","v":3.0303030303030303}]
["Vin",null,{"$f":"+C8","v":0.01},{"$f":"+C7","v":1},null,"b=",{"$f":"+F11","v":0.96969696969696972}]
["Vout = (m * Vin) + b",null,{"$f":"(F10*C26)+F11","v":1},{"$f":"(F10*D26)+F11","v":4}]
[]
[]
[]
[]
[]
[]
[]
[]
[]
[]
[]
[]
[]
[]
[]
[]
[]
[]
[]
[]
[]
[null,null,"Default Values for Input Signal = VinFS = 1V"]
[]
[]
[]
[]
[]
[]
[]
[]
[]
[]
[]
[]
[]
[]
[]
[]
[]
[null,null,"Default Values for Output Signal = VoutFS = (VinFS*m) + b = (1V*3,0303) + 0,9696V = 3,9999V"]
[]
[]
[]
[]
[]
[]
[]
[]
[]
[]
[]
[]
[]
[]
[]
[]
[]
["walter",null,null,null,null,null,null,null,null,null,null,null,null,null,null,null,null,null,null,null,null,null,null,null,"Reg.No.1260"]

{"sheet":"Pos m Neg b","index":1,"n_rows":84,"n_cols":25,"rows_kept":84,"cut":false,"hidden":false,"merged":[[24,0,24,4],[27,0,27,4],[12,7,12,9],[12,10,12,11],[0,0,0,4],[1,0,1,4],[8,9,8,11],[21,10,21,14],[23,10,23,14],[9,9,9,15],[8,0,8,1],[11,5,11,6],[20,0,20,4],[21,0,21,4],[8,13,8,15],[8,5,8,6],[83,24,83,25],[0,18,0,20],[1,18,1,20],[19,10,19,14],[20,10,20,14],[13,12,14,15],[18,11,18,12]]}
["Designing Gain and Offset with Positive m and Negative b",null,null,null,null,null,null,null,null,null,null,null,null,null,null,null,null,null,"Positive m and Negative b"]
["To design such a circuit, some things must be known in advance. The values in yellow cells:",null,null,null,null,null,null,null,null,null,null,null,null,null,null,null,null,null,"Default values"]
["The voltage of the Power Supply for Op-Amp =","Vcc =",{"$f":"+T3","v":10},"Volt",null,null,null,null,null,null,null,null,null,null,null,null,null,null,"Vcc =",10,"Volt"]
["The voltage level of a stable reference =","Vref =",10,"Volt",null,null,null,null,null,null,null,null,null,null,null,null,null,null,"Vref =",10,"Volt"]
["The full-scale output voltage =","VoutFS =",4.5,"Volt",null,null,null,null,null,null,null,null,null,null,null,null,null,null,"VoutFS =",4.5,"Volt"]
["The zero-scale output voltage =","VoutZS =",1.5,"Volt",null,null,null,null,null,null,null,null,null,null,null,null,null,null,"VoutZS =",1.5,"Volt"]
["The full-scale input voltage =","VinFS =",0.5,"Volt",null,null,null,null,null,null,null,null,null,null,null,null,null,null,"VinFS =",0.5,"Volt"]
["The zero-scale input voltage =","VinZS =",0.2,"Volt",null,null,null,null,null,null,null,null,null,null,null,null,null,null,"VinZS =",0.2,"Volt"]
["Positive m and Negative b",null,null,null,null,{"$f":"IF(AND(F10>0,F11>0),\"Select Pos m Pos b\",IF(AND(F10>0,F11<0),\"Select Pos m Neg b\",IF(AND(F10<0,F11>0),\"Select Neg m Pos b\",IF(AND(F10<0,F11<0),\"Select Neg m Neg b\",\"Try again\"))))","v":"Select Pos m Neg b"},null,null,{"$f":"IF(AND(F10>0,F11<0),\"OK\",\"Try again\")","v":"OK"},"Gain = 1 + (Rf/Rg) =",null,null,{"$f":"1+(D13/D15)","v":10},"With standard values"]
["m = the gain of the stage","m =","(VoutFS - VoutZS) / (VinFS - VinZS) =",null,null,{"$f":"(C5-C6)/(C7-C8)","v":10},"|m| =",{"$f":"ABS(F10)","v":10},null,"DC-Coupled Non-Inverting Amplifier"]
["b = the offset of the gain","b =","VoutZS - (m * VinZS) =",null,null,{"$f":"C6-(F10*C8)","v":-0.5},"|b| =",{"$f":"ABS(F11)","v":0.5}]
["Approximation which assumes R1||Rg2<<Rg1",{"$f":"IF(D20<D17,\"OK\",\"Not OK\")","v":"OK"},"Calculated","Standard",null,"Standard values"]
["Select Rf from the data sheet =","Rf =",180000,{"$f":"+C13","v":180000},"Ω",{"$f":"+D13/1000","v":180},"kΩ","Intermediate Values",null,null,"Resulting Values"]
["Choose Ro =","Ro =",20000,{"$f":"+C14","v":20000},"Ω",{"$f":"+D14/1000","v":20},"kΩ","VoutZS =",{"$f":"F10*C30+F11","v":1.5},"Volt",1.589,"Volt","See simulator program above\nwith standard resistors"]
["Calculate Rg = Rf/(m-1) =","Rg =",{"$f":"C13/(F10-1)","v":20000},20000,"Ω",{"$f":"+D15/1000","v":20},"kΩ","VoutFS =",{"$f":"F10*D30+F11","v":4.5},"Volt",4.59,"Volt"]
["Choose Rg2 = Rg/10 =","Rg2 =",{"$f":"+C15/10","v":2000},2000,"Ω",{"$f":"+D16/1000","v":2},"kΩ"]
["Calculate Rg1 = Rg - Rg2 =","Rg1 =",{"$f":"+C15-C16","v":18000},18000,"Ω",{"$f":"+D17/1000","v":18},"kΩ"]
["Calculate Vref' = (|b|*Rg1)/(Rg1+Rf) =","Vref' =",{"$f":"(H11*C17)/(C17+C13)","v":4.5454545454545456E-2},{"$f":"+C18","v":4.5454545454545456E-2},"Volt",{"$f":"+D18*1000","v":45.454545454545453},"mV"]
["Calculate R1 = Rg2*( Vref - Vref')/Vref' =","R1 =",{"$f":"C16*(C4-C18)/C18","v":438000.00000000006},432000,"Ω",{"$f":"+D19/1000","v":432},"kΩ"]
["R1||Rg2 = (R1*Rg2)/(R1+Rg2) =","R1||Rg2",{"$f":"(C19*C16)/(C19+C16)","v":1990.909090909091},{"$f":"(D19*D16)/(D19+D16)","v":1990.7834101382489}]
["Positive m and Negative b with filtering - Rollof frequency fo at Vin",null,null,null,null,null,null,null,null,null,"Udarbejdet af Jørgen Walter ©"]
["Calculate Co Rollof frequency fo at Vin",null,null,null,null,null,null,null,null,null,"www.walter-lystfisker.dk "]
["Select fo =","fo =",16931.356390293033,"Hz",{"$f":"+C23/1000","v":16.931356390293033},"kHz",{"$f":"E23/1000","v":1.6931356390293032E-2},"MHz"]
["Co can be determined by = 1/(2*phi*Ro*fo) =","Co =",{"$f":"(1/(2*PI()*D14*C23))*10^6","v":4.7000057001676766E-4},"uF",{"$f":"C24*1000","v":0.47000057001676765},"nF",{"$f":"E24*1000","v":470.00057001676765},"pF",null,null,"COPYRIGHT © 2014"]
["Calculate Rollof frequency fo with Co at Vin"]
["Select Co =","Co =",470,"pF",{"$f":"C26/1000","v":0.47},"nF",{"$f":"E26/1000","v":4.6999999999999999E-4},"uF"]
["fo can be determined by = 1/(2*phi*Ro*Co) =","fo =",{"$f":"(1/(2*PI()*D14*C26*10^-12))","v":16931.376924669716},"Hz",{"$f":"C27/1000","v":16.931376924669717},"kHz",{"$f":"E27/1000","v":1.6931376924669717E-2},"MHz"]
["Straight line = Y = m * X - b = Vout = m * Vin - b"]
["Vout  LM324",null,{"$f":"+C6","v":1.5},{"$f":"+C5","v":4.5},null,"m=",{"$f":"+F10","v":10}]
["Vin",null,{"$f":"+C8","v":0.2},{"$f":"+C7","v":0.5},null,"b=",{"$f":"+F11","v":-0.5}]
["Vout = (m * Vin) - b",null,{"$f":"(H10*C30)+F11","v":1.5},{"$f":"(H10*D30)+F11","v":4.5}]
[]
[]
[]
[]
[]
[]
[]
[]
[]
[]
[]
[]
[]
[]
[]
[]
["walter"]
[]
[]
[]
[null,null,"Default Values for Input Signal = VinFS = 0,5V"]
[]
[]
[]
[]
[]
[]
[]
[]
[]
[]
[]
[]
[]
[]
[]
[null,null,"Default Values for Output Signal = VoutFS = (VinFS*m) + b = 0,5V*10 + (-05V) = 4,5V"]
[]
[]
[]
[]
[]
[]
[]
[]
[]
[]
[]
[]
[]
[]
[]
["walter",null,null,null,null,null,null,null,null,null,null,null,null,null,null,null,null,null,null,null,null,null,null,null,"Reg.No.1260"]

{"sheet":"Neg m Pos b","index":2,"n_rows":83,"n_cols":25,"rows_kept":83,"cut":false,"hidden":false,"merged":[[8,13,8,15],[0,18,0,20],[1,18,1,20],[1,0,1,4],[0,0,0,4],[8,0,8,1],[82,24,82,25],[25,0,25,4],[8,9,8,11],[23,10,23,14],[8,5,8,6],[9,9,9,15],[11,5,11,6],[19,10,19,14],[20,10,20,14],[21,10,21,14],[17,0,17,6],[18,0,18,6],[21,0,21,6],[12,10,12,11],[12,7,12,9],[13,12,14,15]]}
["Designing Gain and Offset with Negative m and Positive b",null,null,null,null,null,null,null,null,null,null,null,null,null,null,null,null,null,"Negative m and Positive b"]
["To design such a circuit, some things must be known in advance. The values in yellow cells:",null,null,null,null,null,null,null,null,null,null,null,null,null,null,null,null,null,"Default values"]
["The voltage of the Power Supply for Op-Amp =","Vcc =",{"$f":"+T3","v":5},"Volt",null,null,null,null,null,null,null,null,null,null,null,null,null,null,"Vcc =",5,"Volt"]
["The voltage level of a stable reference =","Vref =",5,"Volt",null,null,null,null,null,null,null,null,null,null,null,null,null,null,"Vref =",5,"Volt"]
["The full-scale output voltage =","VoutFS =",1,"Volt",null,null,null,null,null,null,null,null,null,null,null,null,null,null,"VoutFS =",1,"Volt"]
["The zero-scale output voltage =","VoutZS =",3.5,"Volt",null,null,null,null,null,null,null,null,null,null,null,null,null,null,"VoutZS =",3.5,"Volt"]
["The full-scale input voltage =","VinFS =",4,"Volt",null,null,null,null,null,null,null,null,null,null,null,null,null,null,"VinFS =",4,"Volt"]
["The zero-scale input voltage =","VinZS =",1.5,"Volt",null,null,null,null,null,null,null,null,null,null,null,null,null,null,"VinZS =",1.5,"Volt"]
["Negative m and Positive b",null,null,null,null,{"$f":"IF(AND(F10>0,F11>0),\"Select Pos m Pos b\",IF(AND(F10>0,F11<0),\"Select Pos m Neg b\",IF(AND(F10<0,F11>0),\"Select Neg m Pos b\",IF(AND(F10<0,F11<0),\"Select Neg m Neg b\",\"Try again\"))))","v":"Select Neg m Pos b"},null,null,{"$f":"IF(AND(F10<0,F11>0),\"OK\",\"Try again\")","v":"OK"},"-Gain = Rf/R2",null,null,{"$f":"D13/D14","v":1},"With standard values"]
["m = the gain of the stage","m =","(VoutFS - VoutZS) / (VinFS - VinZS) =",null,null,{"$f":"(C5-C6)/(C7-C8)","v":-1},"|m| =",{"$f":"ABS(F10)","v":1},null,"DC-Coupled Inverting Amplifier"]
["b = the offset of the gain","b =","VoutZS - (m * VinZS) =",null,null,{"$f":"C6-(F10*C8)","v":5},"|b| =",{"$f":"ABS(F11)","v":5}]
[null,null,"Calculated","Standard",null,"Standard values"]
["Select Rf from the data sheet =","Rf =",100000,{"$f":"+C13","v":100000},"Ω",{"$f":"+D13/1000","v":100},"kΩ","Intermediate Values",null,null,"Resulting Values"]
["Chose R2 (same order of magnitude as Rf) =","R2 =",100000,{"$f":"+C14","v":100000},"Ω",{"$f":"+D14/1000","v":100},"kΩ","VoutZS =",{"$f":"F10*C28+F11","v":3.5},"Volt",1,"Volt","See simulator program above\nwith standard resistors"]
["Calculate Rg = Rf/|m| =","Rg =",{"$f":"C13/H10","v":100000},100000,"Ω",{"$f":"+D15/1000","v":100},"kΩ","VoutFS =",{"$f":"F10*D28+F11","v":1},"Volt",3.4590000000000001,"Volt"]
["Calculate R1 = (b*R2*Rg)/(Vref*(Rf+Rg)-(b*Rg)) =","R1 =",{"$f":"(H11*C14*C15)/(C4*(C13+C15)-(H11*C15))","v":100000},100000,"Ω",{"$f":"+D16/1000","v":100},"kΩ"]
[]
["Negative m and Positive b with filtering - Rollof frequency fo at Vin"]
["Calculate Cf Rollof frequency fo at Vin"]
["Select fo =","fo =",3386,"Hz",{"$f":"+C20/1000","v":3.3860000000000001},"kHz",{"$f":"E20/1000","v":3.3860000000000001E-3},"MHz"]
["Cf can be determined by = 1/(2*phi*Rf*fo) =","Cf =",{"$f":"(1/(2*PI()*D13*C20))*10^6","v":4.7003822531569805E-4},"uF",{"$f":"C21*1000","v":0.47003822531569805},"nF",{"$f":"E21*1000","v":470.03822531569807},"pF",null,null,"Udarbejdet af Jørgen Walter ©"]
["Calculate Rollof frequency fo with Cf at Vin",null,null,null,null,null,null,null,null,null,"www.walter-lystfisker.dk "]
["Select Cf =","Cf =",470,"pF",{"$f":"C23/1000","v":0.47},"nF",{"$f":"E23/1000","v":4.6999999999999999E-4},"uF"]
["fo can be determined by = 1/(2*phi*Rf*Cf) =","fo =",{"$f":"(1/(2*PI()*D13*C23*10^-12))","v":3386.2753849339442},"Hz",{"$f":"C24/1000","v":3.3862753849339442},"kHz",{"$f":"E24/1000","v":3.3862753849339443E-3},"MHz",null,null,"COPYRIGHT © 2014"]
[]
["Straight line = Y = m * X + b = Vout = m * Vin + b"]
["Vout  LM324",null,{"$f":"+C6","v":3.5},{"$f":"+C5","v":1},null,"m=",{"$f":"+F10","v":-1}]
["Vin",null,{"$f":"+C8","v":1.5},{"$f":"+C7","v":4},null,"b=",{"$f":"+F11","v":5}]
["Vout = -(m * Vin) + b",null,{"$f":"(F10*C28)+F11","v":3.5},{"$f":"(F10*D28)+F11","v":1}]
[]
[]
[]
[]
[]
[]
[]
[]
[]
[]
[]
[]
[]
[]
[]
[]
[]
[]
[]
[]
[]
[null,null,"Default Values for Input Signal = VinFS = 4V"]
[]
[]
[]
[]
[]
[]
[]
[]
[]
[]
[]
[]
[]
[]
[]
[null,null,"Default Values for Output Signal = VoutFS = (VinFS*m) + b = 4V*(-1) + 5V = 1V"]
[]
[]
[]
[]
[]
[]
[]
[]
[]
[]
[]
[]
[]
[]
[]
["walter",null,null,null,null,null,null,null,null,null,null,null,null,null,null,null,null,null,null,null,null,null,null,null,"Reg.No.1260"]

{"sheet":"Neg m Neg b","index":3,"n_rows":83,"n_cols":25,"rows_kept":83,"cut":false,"hidden":false,"merged":[[23,0,23,4],[0,0,0,4],[1,0,1,4],[16,0,16,4],[17,0,17,4],[20,0,20,4],[8,0,8,1],[11,5,11,6],[13,12,14,15],[12,7,12,9],[12,10,12,11],[8,9,8,11],[8,13,8,15],[8,5,8,6],[82,24,82,25],[0,18,0,20],[1,18,1,20],[9,9,9,15],[23,10,23,14],[21,10,21,14],[19,10,19,14],[20,10,20,14]]}
["Designing Gain and Offset with Negative m and Negative b",null,null,null,null,null,null,null,null,null,null,null,null,null,null,null,null,null,"Negative m and Negative b"]
["To design such a circuit, some things must be known in advance. The values in yellow cells:",null,null,null,null,null,null,null,null,null,null,null,null,null,null,null,null,null,"Default values"]
["The voltage of the Power Supply for Op-Amp =","Vcc =",{"$f":"+T3","v":8},"Volt",null,null,null,null,null,null,null,null,null,null,null,null,null,null,"Vcc =",8,"Volt"]
["The voltage level of a stable reference =","Vref =",8,"Volt",null,null,null,null,null,null,null,null,null,null,null,null,null,null,"Vref =",8,"Volt"]
["The full-scale output voltage =","VoutFS =",1,"Volt",null,null,null,null,null,null,null,null,null,null,null,null,null,null,"VoutFS =",1,"Volt"]
["The zero-scale output voltage =","VoutZS =",5,"Volt",null,null,null,null,null,null,null,null,null,null,null,null,null,null,"VoutZS =",5,"Volt"]
["The full-scale input voltage =","VinFS =",-0.1,"Volt",null,null,null,null,null,null,null,null,null,null,null,null,null,null,"VinFS =",-0.1,"Volt"]
["The zero-scale input voltage =","VinZS =",-0.3,"Volt",null,null,null,null,null,null,null,null,null,null,null,null,null,null,"VinZS =",-0.3,"Volt"]
["Negative m and Negative b",null,null,null,null,{"$f":"IF(AND(F10>0,F11>0),\"Select Pos m Pos b\",IF(AND(F10>0,F11<0),\"Select Pos m Neg b\",IF(AND(F10<0,F11>0),\"Select Neg m Pos b\",IF(AND(F10<0,F11<0),\"Select Neg m Neg b\",\"Try again\"))))","v":"Select Neg m Neg b"},null,null,{"$f":"IF(AND(F10<0,F11<0),\"OK\",\"Try again\")","v":"OK"},"-Gain =-(Rf/(Rg1||Rg2)) =",null,null,{"$f":"(D13/D16)","v":20.125},"With standard values"]
["m = the gain of the stage","m =","(VoutFS - VoutZS) / (VinFS - VinZS) =",null,null,{"$f":"(C5-C6)/(C7-C8)","v":-20},"|m| =",{"$f":"ABS(F10)","v":20},null,"DC-Coupled Inverting Amplifier"]
["b = the offset of the gain","b =","VoutZS - (m * VinZS) =",null,null,{"$f":"C6-(F10*C8)","v":-1},"|b| =",{"$f":"ABS(F11)","v":1}]
[null,null,"Calculated","Standard",null,"Standard values"]
["Select Rf from the data sheet =","Rf =",20000,{"$f":"+C13","v":20000},"Ω",{"$f":"+D13/1000","v":20},"kΩ","Intermediate Values",null,null,"Resulting Values"]
["Calculate Rg1 = Rf/|m| =","Rg1 =",{"$f":"C13/H10","v":1000},1000,"Ω",{"$f":"+D14/1000","v":1},"kΩ","VoutZS =",{"$f":"F10*C26+F11","v":5},"Volt",5.0030000000000001,"Volt","See simulator program above\nwith standard resistors"]
["Calculate Rg2 = Vref*Rf/|b| =","Rg2 =",{"$f":"C4*C13/H11","v":160000},160000,"Ω",{"$f":"+D15/1000","v":160},"kΩ","VoutFS =",{"$f":"F10*D26+F11","v":1},"Volt",1.004,"Volt"]
["Rg1||Rg2 = (Rg1*Rg2)/(Rg1+Rg2) =","Rg1||Rg2",{"$f":"(C14*C15)/(C14+C15)","v":993.78881987577643},{"$f":"(D14*D15)/(D14+D15)","v":993.78881987577643},"Ω",{"$f":"+D16/1000","v":0.99378881987577639},"kΩ"]
["Negative m and Negative b with filtering - Rollof frequency fo at Vin"]
["Rollof frequency fo at Vin"]
["Select fo =","fo =",16931,"Hz",{"$f":"+C19/1000","v":16.931000000000001},"kHz",{"$f":"E19/1000","v":1.6931000000000002E-2},"MHz"]
["Cf can be determined by = 1/(2*phi*Rf*fo) =","Cf =",{"$f":"(1/(2*PI()*D13*C19))*10^6","v":4.7001046332731476E-4},"uF",{"$f":"C20*1000","v":0.47001046332731478},"nF",{"$f":"E20*1000","v":470.01046332731477},"pF"]
["Rollof frequency fo at Vin",null,null,null,null,null,null,null,null,null,"Udarbejdet af Jørgen Walter ©"]
["Select Cf =","Cf =",470,"pF",{"$f":"C22/1000","v":0.47},"nF",{"$f":"E22/1000","v":4.6999999999999999E-4},"uF",null,null,"www.walter-lystfisker.dk "]
["fo can be determined by = 1/(2*phi*Rf*Cf) =","fo =",{"$f":"(1/(2*PI()*D13*C22*10^-12))","v":16931.376924669716},"Hz",{"$f":"C23/1000","v":16.931376924669717},"kHz",{"$f":"E23/1000","v":1.6931376924669717E-2},"MHz"]
["Straight line = Y = m * X - b = Vout = m * Vin - b",null,null,null,null,null,null,null,null,null,"COPYRIGHT © 2014"]
["Vout  LM324",null,{"$f":"+C6","v":5},{"$f":"+C5","v":1},null,"m=",{"$f":"+F10","v":-20}]
["Vin",null,{"$f":"+C8","v":-0.3},{"$f":"+C7","v":-0.1},null,"b=",{"$f":"+F11","v":-1}]
["Vout = -(m * Vin) - b",null,{"$f":"(F10*C26)+F11","v":5},{"$f":"(F10*D26)+F11","v":1}]
[]
[]
[]
[]
[]
[]
[]
[]
[]
[]
[]
[]
[]
[]
[]
[]
[]
[]
[]
[]
["walter"]
[null,null,"Default Values for Input Signal = VinFS = -0,1V"]
[]
[]
[]
[]
[]
[]
[]
[]
[]
[]
[]
[]
[]
[]
[]
[]
[null,null,"Default Values for Output Signal = VoutFS = (VinFS*m) + b = (-0,1V*(-20) + (-1V) = 1V"]
[]
[]
[]
[]
[]
[]
[]
[]
[]
[]
[]
[]
[]
[]
[]
[]
["walter",null,null,null,null,null,null,null,null,null,null,null,null,null,null,null,null,null,null,null,null,null,null,null,"Reg.No.1260"]

{"sheet":"Manual","index":4,"n_rows":99,"n_cols":37,"rows_kept":99,"cut":false,"hidden":false,"merged":[[61,9,61,10],[70,9,70,10],[79,9,79,10],[88,9,88,10],[77,0,77,2],[85,0,85,2],[86,0,86,2],[58,0,58,2],[59,0,59,2],[67,0,67,2],[68,0,68,2],[76,0,76,2],[11,36,12,36],[0,24,0,25],[0,28,0,31],[6,4,6,7],[7,2,7,5],[8,4,8,5],[3,4,3,5],[6,0,6,2],[7,9,7,13],[8,9,8,13],[9,9,9,13],[11,9,11,13],[56,0,56,10],[46,4,46,5],[0,0,0,13],[13,0,13,13],[12,0,12,1],[1,0,1,13],[7,7,8,8],[91,21,91,22],[91,23,91,24],[80,21,80,22],[80,23,80,24],[81,23,81,24],[90,21,90,22],[90,23,90,24],[81,21,81,22],[23,14,23,35],[61,21,61,22],[61,23,61,24],[62,21,62,22],[62,23,62,24],[56,13,56,35],[60,21,60,22],[60,23,60,24],[70,21,70,22],[70,23,70,24],[71,21,71,22],[71,23,71,24],[63,21,63,22],[63,23,63,24],[64,21,64,22],[64,23,64,24],[68,21,68,22],[69,21,69,22],[69,23,69,24],[98,35,98,36],[92,21,92,22],[92,23,92,24],[68,23,68,24],[73,21,73,22],[73,23,73,24],[78,21,78,22],[78,23,78,24],[72,21,72,22],[72,23,72,24],[79,21,79,22],[79,23,79,24],[82,21,82,22],[82,23,82,24],[89,21,89,22],[89,23,89,24]]}
["Instruktions Manual for Designing af forstærkning og offset i en Op-Amp",null,null,null,null,null,null,null,null,null,null,null,null,null,null,null,null,null,null,null,null,null,null,null,"Y",null,null,null,"Y = f(X) + b"]
["For at bruge denne side korrekt skal ovennævnte \"Sikkerhedsadvarsel\" for Makroer aktiveres.  Tast \"Indstillinger\" og \"Aktiver indholdet\".",null,null,null,null,null,null,null,null,null,null,null,null,null,null,null,null,null,null,null,null,null,null,null,10]
["Inden brug af regnearket vil jeg komme med et godt råd, læs hjemmesiden med \"Linjens Ligning\"",null,null,null,null,null,null,"http://da.wikipedia.org/wiki/Linjens_ligning ",null,null,null,null,null,null,null,"Green offset = 0",null,null,null,null,null,null,null,null,9,null,"Y=(X)+0 (0 skæring med Y-aksen)"]
["Linjens ligning er givet ved:",null,"Y = + -m*X + - b","eller","Y - Yₒ = a*(X - Xₒ) + b",null,"hvor X er variablen, m er hældningen for linjen og b er skæringen med Y aksen",null,null,null,null,null,null,null,null,"Red offset = 3",null,null,null,null,null,null,null,null,8,null,"Indsættes X=7 fås Y=7"]
["I regnearket er Y erstattet med Vout, m er erstattet med forstærkningen i Op-Amp og b er erstattet med offset",null,null,null,null,null,null,null,null,null,null,null,null,null,null,"Blue offset = -1",null,null,null,null,null,null,null,null,7,null,"Indsættes X=0 fås Y=-0"]
["Skal man designe en forstærker med en given Input: Vin(min) og Vin(max) samt Vout(min) og Vout(max) anvendes formlen:",null,null,null,null,null,null,null,null,null,null,null,null,null,null,null,null,null,null,null,null,null,null,null,6]
["Vout(max) - Vout(min) = m*(Vin(max) - Vin(min)) + b",null,null,null,"m og b beregnes efter formlerne nedenfor",null,null,null,null,null,null,null,null,null,null,null,null,null,null,null,null,null,null,null,5]
["m = forstærkningen = Vout/Vin =",null,"(Vout(max) - Vout(min) / (Vin(max) - Vin(min)",null,null,null,{"$f":"(D12-C12)/(F12-E12)","v":3.0303030303030303},{"$f":"+M54","v":"Select Pos m Pos b"},null,null,null,null,null,null,null,null,null,null,null,null,null,null,null,null,4]
["b = skæring med Y aksen = Y1 - (m * X1) =",null,null,{"$f":"D12-(G12*F12)","v":0.96969696969696972},"Vout(min) - (m * Vin(min))",null,{"$f":"C12-G8*E12","v":0.96969696969696972},null,null,"Udarbejdet af Jørgen Walter ©",null,null,null,null,null,"Y=(X/2)+3 (3 skæring med Y-aksen)",null,null,null,null,null,null,null,null,3]
[null,null,{"$f":"+A64","v":"VoutZS ="},{"$f":"+A63","v":"VoutFS ="},{"$f":"+A66","v":"VinZS ="},{"$f":"+A65","v":"VinFS ="},"m","b",null,"www.walter-lystfisker.dk ",null,null,null,null,null,"Indsættes X=2 fås Y=4",null,null,null,null,null,null,null,null,2]
["Vout","Vin","Vout(min)","Vout(max)","Vin(min)","Vin(max)","m","b",null,null,null,null,null,null,null,"Indsættes X=0 fås Y=-3",null,null,null,null,null,null,null,null,1]
[null,null,{"$f":"+B64","v":1},{"$f":"+B63","v":4},{"$f":"+B66","v":0.01},{"$f":"+B65","v":1},{"$f":"+G8","v":3.0303030303030303},{"$f":"+G9","v":0.96969696969696972},null,"COPYRIGHT © 2014",null,null,null,null,-10,-9,-8,-7,-6,-5,-4,-3,-2,-1,0,0,1,2,3,4,5,6,7,8,9,10,"X"]
["Linjens ligning er givet ved:",null,"Y = + - m*X + - b =",null,{"$f":"IF(AND(G8>0,G9>0),A58,IF(AND(G8>0,G9<0),A67,IF(AND(G8<0,G9>0),A76,IF(AND(G8<0,G9<0),A85,\"Try again\"))))","v":"Vout = (m * Vin) + b"},null,{"$f":"(G8*E12)+G9","v":1},{"$f":"(G8*F12)+G9","v":4},"Volt",null,null,null,null,null,null,null,null,null,null,null,null,null,null,null,-1]
["Diagrammet herunder viser resultatet af de indsatte værdier i de gule celler",null,null,null,null,null,null,null,null,null,null,null,null,null,null,null,null,null,null,null,null,null,null,null,-2]
[null,null,null,null,null,null,null,null,null,null,null,null,null,null,null,null,null,null,null,null,null,null,null,null,-3]
[null,null,null,null,null,null,null,null,null,null,null,null,null,null,null,null,null,null,null,null,null,null,null,null,-4]
[null,null,null,null,null,null,null,null,null,null,null,null,null,null,null,null,null,null,null,null,null,null,null,null,-5]
[null,null,null,null,null,null,null,null,null,null,null,null,null,null,null,null,null,null,null,null,null,null,null,null,-6]
[null,null,null,null,null,null,null,null,null,null,null,null,null,null,null,null,null,null,null,null,null,null,null,null,-7]
[null,null,null,null,null,null,null,null,null,null,null,null,null,null,null,"Y=(X/2)-1 (-1 skæring med Y-aksen)",null,null,null,null,null,null,null,null,-8]
[null,null,null,null,null,null,null,null,null,null,null,null,null,null,null,"Indsættes X=2 fås Y=0",null,null,null,null,null,null,null,null,-9]
[null,null,null,null,null,null,null,null,null,null,null,null,null,null,null,"Indsættes X=0 fås Y=-1",null,null,null,null,null,null,null,null,-10]
[]
[null,null,null,null,null,null,null,null,null,null,null,null,null,null,"Visning af kurverne er ikke målfaste men blot symbolske"]
[]
[]
[]
[]
[]
[]
[]
[null,null,null,null,null,null,null,null,null,null,null,null,null,null,null,null,null,"Udarbejdet af Jørgen Walter ©"]
["Ligningen for en ret linie har fire mulige løsninger afhængigt af fortegnet for m og b. Således giver ligningerne en løsning i fire former. Fire kredsløb skal udvikles,",null,null,null,null,null,null,null,null,null,null,null,null,null,null,null,null,"www.walter-lystfisker.dk "]
["en for hver form for ligningen for en ret linie. De fire ligninger ses herunder:"]
[null,null,null,null,null,null,null,null,null,null,null,null,null,null,null,null,null,"COPYRIGHT © 2014"]
[1,"y = +mx + b","Regneark:",{"$f":"+'Pos m Pos b'!F9","v":"Select Pos m Pos b"}]
[2,"y = +mx - b","Regneark:",{"$f":"+'Pos m Neg b'!F9","v":"Select Pos m Neg b"}]
[3,"y = −mx + b","Regneark:",{"$f":"+'Neg m Pos b'!F9","v":"Select Neg m Pos b"}]
[4,"y = -mx - b","Regneark:",{"$f":"+'Neg m Neg b'!F9","v":"Select Neg m Neg b"}]
[]
["Fortegnet på m og b afgør hvilken type kredsløb, der kræves for at implementere løsningen. Designeren kan nemt bestemme værdien og tegnet på m ved den følgende ligning:"]
[]
["m = (Vout(max) - Vout(min) / (Vin(max) - Vin(min) =",null,null,{"$f":"+G8","v":3.0303030303030303},{"$f":"IF(D43>0,\"Select Pos m Pos b or Pos b Neg b\",IF(D43<0,\"Select Neg m Pos b or Neg m Neg b\",\"Try again\"))","v":"Select Pos m Pos b or Pos b Neg b"},null,null,"Der er således 2 ligninger tilbage"]
[]
["Værdien og fortegnet på b kan bestemmes ved at sætte værdien af ​​m ind i ligning 1"]
[]
[null,"Y = +m*X + b","b = Y - (m * X)",{"$f":"D48-(D43*D49)","v":0.96969696969696972},{"$f":"IF(AND(D47>0,D43>0),\"Select Pos m Pos b\",IF(AND(D47>0,D43<0),\"Select Neg m Pos b\",IF(AND(D47<0,D43>0),\"Select Pos m Neg b\",IF(AND(D47<0,D43<0),\"Select Neg m Neg b\",\"Try again\"))))","v":"Select Pos m Pos b"},null,null,"Der er således 1 ligning tilbage"]
[null,"y =",{"$f":"+D11","v":"Vout(max)"},{"$f":"+D12","v":4}]
[null,"X =",{"$f":"+F11","v":"Vin(max)"},{"$f":"+F12","v":1}]
[]
["Regnearket er Password beskyttet, således er det ikke muligt at slette noget af vital betydning. Alle gule celler kan ændres med passende værdier for kredsløbet."]
["Disse værdier skal indsættes i Volt, Ohm, Hz og pF. I modstands feltet beregnes modstandene i de grønne celler. De følger ikke altid standard værdier, derfor skal"]
["den nærmeste standard værdi for modstanden findes, og indsættes i den gule celle til højre. Alle 4 regneark har nogle default værdier, som passer til diagrammet."]
["Prøv at indsætte v.h.a. Makro knap værdierne med de farvede tal herunder i de gule celler ovenfor, så kommer der et resultat op, for hvilken model der skal bruges:",null,null,null,null,null,null,null,null,null,null,null,{"$f":"+E47","v":"Select Pos m Pos b"}]
["I modellerne er der anvendt en LM324. Vcc(min) er 5V og Vcc(max) er 32V, hvilket giver Vout(min) 3,5V og Vout(max) 28V. Alle modeller er Bias til Vcc (Vcc = Vref)."]
[]
["Ved at anvende Makro tasterne er det muligt at indsætte værdierne automatisk.",null,null,null,null,null,null,null,null,null,null,null,null,"De fire kredsløb ses herunder"]
[{"$f":"+'Pos m Pos b'!A27","v":"Vout = (m * Vin) + b"}]
["Positive m and Positive b"]
["Default values"]
["Vcc =",{"$f":"+'Pos m Pos b'!T3","v":6},"Volt",null,null,null,null,null,null,null,null,null,null,null,null,null,null,null,null,null,null,{"$f":"+'Pos m Pos b'!B13","v":"R1 ="},null,{"$f":"+'Pos m Pos b'!F13","v":10},null,{"$f":"+'Pos m Pos b'!G13","v":"kΩ"}]
["Vref =",{"$f":"+'Pos m Pos b'!T4","v":6},"Volt",null,null,null,null,null,null,"Makro knap",null,null,null,null,null,null,null,null,null,null,null,{"$f":"+'Pos m Pos b'!B14","v":"Rf ="},null,{"$f":"+'Pos m Pos b'!F14","v":27},null,{"$f":"+'Pos m Pos b'!G14","v":"kΩ"}]
["VoutFS =",{"$f":"+'Pos m Pos b'!T5","v":4},"Volt",null,null,null,null,null,null,null,null,null,null,null,null,null,null,null,null,null,null,{"$f":"+'Pos m Pos b'!B15","v":"R2 ="},null,{"$f":"+'Pos m Pos b'!F15","v":187},null,{"$f":"+'Pos m Pos b'!G15","v":"kΩ"}]
["VoutZS =",{"$f":"+'Pos m Pos b'!T6","v":1},"Volt",null,null,null,null,null,null,null,null,null,null,null,null,null,null,null,null,null,null,{"$f":"+'Pos m Pos b'!B16","v":"Rg ="},null,{"$f":"+'Pos m Pos b'!F16","v":12.4},null,{"$f":"+'Pos m Pos b'!G16","v":"kΩ"}]
["VinFS =",{"$f":"+'Pos m Pos b'!T7","v":1},"Volt",null,null,null,null,null,null,null,null,null,null,null,null,null,null,null,null,null,null,{"$f":"+'Pos m Pos b'!B23","v":"fo ="},null,{"$f":"+'Pos m Pos b'!E23","v":33.862753849339434},null,{"$f":"+'Pos m Pos b'!F23","v":"kHz"}]
["VinZS =",{"$f":"+'Pos m Pos b'!T8","v":0.01},"Volt"]
[{"$f":"+'Pos m Neg b'!A31","v":"Vout = (m * Vin) - b"}]
["Positive m and Negative b"]
["Default values",null,null,null,null,null,null,null,null,null,null,null,null,null,null,null,null,null,null,null,null,{"$f":"+'Pos m Neg b'!B13","v":"Rf ="},null,{"$f":"+'Pos m Neg b'!F13","v":180},null,{"$f":"+'Pos m Neg b'!G13","v":"kΩ"}]
["Vcc =",{"$f":"+'Pos m Neg b'!T3","v":10},"Volt",{"$f":"+C122","v":0},{"$f":"+C121","v":0},{"$f":"+C124","v":0},{"$f":"+C123","v":0},null,null,null,null,null,null,null,null,null,null,null,null,null,null,{"$f":"+'Pos m Neg b'!B14","v":"Ro ="},null,{"$f":"+'Pos m Neg b'!F14","v":20},null,{"$f":"+'Pos m Neg b'!G14","v":"kΩ"}]
["Vref =",{"$f":"+'Pos m Neg b'!T4","v":10},"Volt",null,{"$f":"+D123","v":0},{"$f":"+D122","v":0},{"$f":"+D125","v":0},{"$f":"+D124","v":0},null,"Makro knap",null,null,null,null,null,null,null,null,null,null,null,{"$f":"+'Pos m Neg b'!B19","v":"R1 ="},null,{"$f":"+'Pos m Neg b'!F19","v":432},null,{"$f":"+'Pos m Neg b'!G19","v":"kΩ"}]
["VoutFS =",{"$f":"+'Pos m Neg b'!T5","v":4.5},"Volt",null,null,null,null,null,null,null,null,null,null,null,null,null,null,null,null,null,null,{"$f":"+'Pos m Neg b'!B16","v":"Rg2 ="},null,{"$f":"+'Pos m Neg b'!F16","v":2},null,{"$f":"+'Pos m Neg b'!G16","v":"kΩ"}]
["VoutZS =",{"$f":"+'Pos m Neg b'!T6","v":1.5},"Volt",null,null,null,null,null,null,null,null,null,null,null,null,null,null,null,null,null,null,{"$f":"+'Pos m Neg b'!B17","v":"Rg1 ="},null,{"$f":"+'Pos m Neg b'!F17","v":18},null,{"$f":"+'Pos m Neg b'!G17","v":"kΩ"}]
["VinFS =",{"$f":"+'Pos m Neg b'!T7","v":0.5},"Volt",null,null,null,null,null,null,null,null,null,null,null,null,null,null,null,null,null,null,{"$f":"+'Pos m Neg b'!B27","v":"fo ="},null,{"$f":"+'Pos m Neg b'!E27","v":16.931376924669717},null,{"$f":"+'Pos m Neg b'!F27","v":"kHz"}]
["VinZS =",{"$f":"+'Pos m Neg b'!T8","v":0.2},"Volt"]
[{"$f":"+'Neg m Pos b'!A29","v":"Vout = -(m * Vin) + b"}]
["Negative m and Positive b"]
["Default values"]
["Vcc =",{"$f":"+'Neg m Pos b'!T3","v":5},"Volt",null,null,null,null,null,null,null,null,null,null,null,null,null,null,null,null,null,null,{"$f":"+'Neg m Pos b'!B13","v":"Rf ="},null,{"$f":"+'Neg m Pos b'!F13","v":100},null,{"$f":"+'Neg m Pos b'!G13","v":"kΩ"}]
["Vref =",{"$f":"+'Neg m Pos b'!T4","v":5},"Volt",null,null,null,null,null,null,"Makro knap",null,null,null,null,null,null,null,null,null,null,null,{"$f":"+'Neg m Pos b'!B14","v":"R2 ="},null,{"$f":"+'Neg m Pos b'!F14","v":100},null,{"$f":"+'Neg m Pos b'!G14","v":"kΩ"}]
["VoutFS =",{"$f":"+'Neg m Pos b'!T5","v":1},"Volt",null,null,null,null,null,null,null,null,null,null,null,null,null,null,null,null,null,null,{"$f":"+'Neg m Pos b'!B15","v":"Rg ="},null,{"$f":"+'Neg m Pos b'!F15","v":100},null,{"$f":"+'Neg m Pos b'!G15","v":"kΩ"}]
["VoutZS =",{"$f":"+'Neg m Pos b'!T6","v":3.5},"Volt",null,null,null,null,null,null,null,null,null,null,null,null,null,null,null,null,null,null,{"$f":"+'Neg m Pos b'!B16","v":"R1 ="},null,{"$f":"+'Neg m Pos b'!F16","v":100},null,{"$f":"+'Neg m Pos b'!G16","v":"kΩ"}]
["VinFS =",{"$f":"+'Neg m Pos b'!T7","v":4},"Volt",null,null,null,null,null,null,null,null,null,null,null,null,null,null,null,null,null,null,{"$f":"+'Neg m Pos b'!B24","v":"fo ="},null,{"$f":"+'Neg m Pos b'!E24","v":3.3862753849339442},null,{"$f":"+'Neg m Pos b'!F24","v":"kHz"}]
["VinZS =",{"$f":"+'Neg m Pos b'!T8","v":1.5},"Volt"]
[{"$f":"+'Neg m Neg b'!A27","v":"Vout = -(m * Vin) - b"}]
["Negative m and Negative b"]
["Default values"]
["Vcc =",{"$f":"+'Neg m Neg b'!T3","v":8},"Volt"]
["Vref =",{"$f":"+'Neg m Neg b'!T4","v":8},"Volt",null,null,null,null,null,null,"Makro knap"]
["VoutFS =",{"$f":"+'Neg m Neg b'!T5","v":1},"Volt",null,null,null,null,null,null,null,null,null,null,null,null,null,null,null,null,null,null,{"$f":"+'Neg m Neg b'!B13","v":"Rf ="},null,{"$f":"+'Neg m Neg b'!F13","v":20},null,{"$f":"+'Neg m Neg b'!G13","v":"kΩ"}]
["VoutZS =",{"$f":"+'Neg m Neg b'!T6","v":5},"Volt",null,null,null,null,null,null,null,null,null,null,null,null,null,null,null,null,null,null,{"$f":"+'Neg m Neg b'!B14","v":"Rg1 ="},null,{"$f":"+'Neg m Neg b'!F14","v":1},null,{"$f":"+'Neg m Neg b'!G14","v":"kΩ"}]
["VinFS =",{"$f":"+'Neg m Neg b'!T7","v":-0.1},"Volt",null,null,null,null,null,null,null,null,null,null,null,null,null,null,null,null,null,null,{"$f":"+'Neg m Neg b'!B15","v":"Rg2 ="},null,{"$f":"+'Neg m Neg b'!F15","v":160},null,{"$f":"+'Neg m Neg b'!G15","v":"kΩ"}]
["VinZS =",{"$f":"+'Neg m Neg b'!T8","v":-0.3},"Volt",null,null,null,null,null,null,null,null,null,null,null,null,null,null,null,null,null,null,{"$f":"+'Neg m Neg b'!B23","v":"fo ="},null,{"$f":"+'Neg m Neg b'!E23","v":16.931376924669717},null,{"$f":"+'Neg m Neg b'!F23","v":"kHz"}]
[]
[]
[]
[]
[]
["walter",null,null,null,null,null,null,null,null,null,null,null,null,null,null,null,null,null,null,null,null,null,null,null,null,null,null,null,null,null,null,null,null,null,null,"Reg.No.1260"]